{"text_format":"3","workbook":"xlsx","n_sheets":5,"sheets":["Produktsalgsrapport","Historiske data","Prisliste","Pivottabel over prispoint","Pivottabel over salgstendenser"],"not_rendered":{"charts":2,"defined_names":6,"pivot_tables":2},"read":"whole","date_system":"1900"}

{"sheet":"Produktsalgsrapport","index":0,"n_rows":20,"n_cols":2,"rows_kept":20}
[null,"Produktets salgsrapport"]
{"$rows_empty":18}
[null," Produkter"]

{"sheet":"Historiske data","index":1,"n_rows":33,"n_cols":10,"rows_kept":33}
[null,"Historisk produktprisliste og salg"]
[]
[null,"Produkt-id","Produktnavn","Prisdato","Detailpris pr. enhed","Engrospris pr. enhed*","Solgte enheder (detail)","Solgte enheder (engros)","Salg i alt (antal)","Salg i alt (DKK)"]
[null,5,{"$f":"IFERROR(IF(tblSalg[[#This Row],[Produkt-id]]<>\"\",VLOOKUP(tblSalg[Produkt-id],tblProdukter[[Produkt-id]:[Navn]],2,FALSE),\"\"),\"Unknown Product ID\")","v":"Shorts"},"2012-01-01",20,{"v":20,"d":"kr. 20"},629,{"v":1254,"d":"1,254"},{"$f":"tblSalg[[#This Row],[Solgte enheder (detail)]]+tblSalg[[#This Row],[Solgte enheder (engros)]]","v":{"v":1883,"d":"1,883"}},{"$f":"tblSalg[[#This Row],[Solgte enheder (detail)]]*tblSalg[[#This Row],[Detailpris pr. enhed]]+tblSalg[[#This Row],[Solgte enheder (engros)]]*tblSalg[[#This Row],[Engrospris pr. enhed*]]","v":{"v":37660,"d":"kr. 37,660"}}]
[null,1,{"$f":"IFERROR(IF(tblSalg[[#This Row],[Produkt-id]]<>\"\",VLOOKUP(tblSalg[Produkt-id],tblProdukter[[Produkt-id]:[Navn]],2,FALSE),\"\"),\"Unknown Product ID\")","v":"Trøjer"},"2012-01-01",88,{"v":54,"d":"kr. 54"},734,{"v":1427,"d":"1,427"},{"$f":"tblSalg[[#This Row],[Solgte enheder (detail)]]+tblSalg[[#This Row],[Solgte enheder (engros)]]","v":{"v":2161,"d":"2,161"}},{"$f":"tblSalg[[#This Row],[Solgte enheder (detail)]]*tblSalg[[#This Row],[Detailpris pr. enhed]]+tblSalg[[#This Row],[Solgte enheder (engros)]]*tblSalg[[#This Row],[Engrospris pr. enhed*]]","v":{"v":141650,"d":"kr. 141,650"}}]
[null,2,{"$f":"IFERROR(IF(tblSalg[[#This Row],[Produkt-id]]<>\"\",VLOOKUP(tblSalg[Produkt-id],tblProdukter[[Produkt-id]:[Navn]],2,FALSE),\"\"),\"Unknown Product ID\")","v":"Sandaler"},"2012-01-01",70,{"v":44,"d":"kr. 44"},744,{"v":1043,"d":"1,043"},{"$f":"tblSalg[[#This Row],[Solgte enheder (detail)]]+tblSalg[[#This Row],[Solgte enheder (engros)]]","v":{"v":1787,"d":"1,787"}},{"$f":"tblSalg[[#This Row],[Solgte enheder (detail)]]*tblSalg[[#This Row],[Detailpris pr. enhed]]+tblSalg[[#This Row],[Solgte enheder (engros)]]*tblSalg[[#This Row],[Engrospris pr. enhed*]]","v":{"v":97972,"d":"kr. 97,972"}}]
[null,3,{"$f":"IFERROR(IF(tblSalg[[#This Row],[Produkt-id]]<>\"\",VLOOKUP(tblSalg[Produkt-id],tblProdukter[[Produkt-id]:[Navn]],2,FALSE),\"\"),\"Unknown Product ID\")","v":"Parasoller"},"2012-01-01",63,{"v":44,"d":"kr. 44"},681,{"v":1523,"d":"1,523"},{"$f":"tblSalg[[#This Row],[Solgte enheder (detail)]]+tblSalg[[#This Row],[Solgte enheder (engros)]]","v":{"v":2204,"d":"2,204"}},{"$f":"tblSalg[[#This Row],[Solgte enheder (detail)]]*tblSalg[[#This Row],[Detailpris pr. enhed]]+tblSalg[[#This Row],[Solgte enheder (engros)]]*tblSalg[[#This Row],[Engrospris pr. enhed*]]","v":{"v":109915,"d":"kr. 109,915"}}]
[null,4,{"$f":"IFERROR(IF(tblSalg[[#This Row],[Produkt-id]]<>\"\",VLOOKUP(tblSalg[Produkt-id],tblProdukter[[Produkt-id]:[Navn]],2,FALSE),\"\"),\"Unknown Product ID\")","v":"Vandflasker"},"2012-01-01",35,{"v":27,"d":"kr. 27"},602,{"v":1822,"d":"1,822"},{"$f":"tblSalg[[#This Row],[Solgte enheder (detail)]]+tblSalg[[#This Row],[Solgte enheder (engros)]]","v":{"v":2424,"d":"2,424"}},{"$f":"tblSalg[[#This Row],[Solgte enheder (detail)]]*tblSalg[[#This Row],[Detailpris pr. enhed]]+tblSalg[[#This Row],[Solgte enheder (engros)]]*tblSalg[[#This Row],[Engrospris pr. enhed*]]","v":{"v":70264,"d":"kr. 70,264"}}]
[null,1,{"$f":"IFERROR(IF(tblSalg[[#This Row],[Produkt-id]]<>\"\",VLOOKUP(tblSalg[Produkt-id],tblProdukter[[Produkt-id]:[Navn]],2,FALSE),\"\"),\"Unknown Product ID\")","v":"Trøjer"},"2012-02-01",55,{"v":44,"d":"kr. 44"},678,{"v":1515,"d":"1,515"},{"$f":"tblSalg[[#This Row],[Solgte enheder (detail)]]+tblSalg[[#This Row],[Solgte enheder (engros)]]","v":{"v":2193,"d":"2,193"}},{"$f":"tblSalg[[#This Row],[Solgte enheder (detail)]]*tblSalg[[#This Row],[Detailpris pr. enhed]]+tblSalg[[#This Row],[Solgte enheder (engros)]]*tblSalg[[#This Row],[Engrospris pr. enhed*]]","v":{"v":103950,"d":"kr. 103,950"}}]
[null,2,{"$f":"IFERROR(IF(tblSalg[[#This Row],[Produkt-id]]<>\"\",VLOOKUP(tblSalg[Produkt-id],tblProdukter[[Produkt-id]:[Navn]],2,FALSE),\"\"),\"Unknown Product ID\")","v":"Sandaler"},"2012-02-01",83,{"v":54,"d":"kr. 54"},753,{"v":1005,"d":"1,005"},{"$f":"tblSalg[[#This Row],[Solgte enheder (detail)]]+tblSalg[[#This Row],[Solgte enheder (engros)]]","v":{"v":1758,"d":"1,758"}},{"$f":"tblSalg[[#This Row],[Solgte enheder (detail)]]*tblSalg[[#This Row],[Detailpris pr. enhed]]+tblSalg[[#This Row],[Solgte enheder (engros)]]*tblSalg[[#This Row],[Engrospris pr. enhed*]]","v":{"v":116769,"d":"kr. 116,769"}}]
[null,3,{"$f":"IFERROR(IF(tblSalg[[#This Row],[Produkt-id]]<>\"\",VLOOKUP(tblSalg[Produkt-id],tblProdukter[[Produkt-id]:[Navn]],2,FALSE),\"\"),\"Unknown Product ID\")","v":"Parasoller"},"2012-02-01",34,{"v":34,"d":"kr. 34"},986,{"v":1069,"d":"1,069"},{"$f":"tblSalg[[#This Row],[Solgte enheder (detail)]]+tblSalg[[#This Row],[Solgte enheder (engros)]]","v":{"v":2055,"d":"2,055"}},{"$f":"tblSalg[[#This Row],[Solgte enheder (detail)]]*tblSalg[[#This Row],[Detailpris pr. enhed]]+tblSalg[[#This Row],[Solgte enheder (engros)]]*tblSalg[[#This Row],[Engrospris pr. enhed*]]","v":{"v":69870,"d":"kr. 69,870"}}]
[null,4,{"$f":"IFERROR(IF(tblSalg[[#This Row],[Produkt-id]]<>\"\",VLOOKUP(tblSalg[Produkt-id],tblProdukter[[Produkt-id]:[Navn]],2,FALSE),\"\"),\"Unknown Product ID\")","v":"Vandflasker"},"2012-02-01",35,{"v":25,"d":"kr. 25"},848,{"v":1211,"d":"1,211"},{"$f":"tblSalg[[#This Row],[Solgte enheder (detail)]]+tblSalg[[#This Row],[Solgte enheder (engros)]]","v":{"v":2059,"d":"2,059"}},{"$f":"tblSalg[[#This Row],[Solgte enheder (detail)]]*tblSalg[[#This Row],[Detailpris pr. enhed]]+tblSalg[[#This Row],[Solgte enheder (engros)]]*tblSalg[[#This Row],[Engrospris pr. enhed*]]","v":{"v":59955,"d":"kr. 59,955"}}]
[null,5,{"$f":"IFERROR(IF(tblSalg[[#This Row],[Produkt-id]]<>\"\",VLOOKUP(tblSalg[Produkt-id],tblProdukter[[Produkt-id]:[Navn]],2,FALSE),\"\"),\"Unknown Product ID\")","v":"Shorts"},"2012-02-01",41,{"v":38,"d":"kr. 38"},980,{"v":1330,"d":"1,330"},{"$f":"tblSalg[[#This Row],[Solgte enheder (detail)]]+tblSalg[[#This Row],[Solgte enheder (engros)]]","v":{"v":2310,"d":"2,310"}},{"$f":"tblSalg[[#This Row],[Solgte enheder (detail)]]*tblSalg[[#This Row],[Detailpris pr. enhed]]+tblSalg[[#This Row],[Solgte enheder (engros)]]*tblSalg[[#This Row],[Engrospris pr. enhed*]]","v":{"v":90720,"d":"kr. 90,720"}}]
[null,1,{"$f":"IFERROR(IF(tblSalg[[#This Row],[Produkt-id]]<>\"\",VLOOKUP(tblSalg[Produkt-id],tblProdukter[[Produkt-id]:[Navn]],2,FALSE),\"\"),\"Unknown Product ID\")","v":"Trøjer"},"2012-02-29",27,{"v":18,"d":"kr. 18"},533,{"v":1936,"d":"1,936"},{"$f":"tblSalg[[#This Row],[Solgte enheder (detail)]]+tblSalg[[#This Row],[Solgte enheder (engros)]]","v":{"v":2469,"d":"2,469"}},{"$f":"tblSalg[[#This Row],[Solgte enheder (detail)]]*tblSalg[[#This Row],[Detailpris pr. enhed]]+tblSalg[[#This Row],[Solgte enheder (engros)]]*tblSalg[[#This Row],[Engrospris pr. enhed*]]","v":{"v":49239,"d":"kr. 49,239"}}]
[null,2,{"$f":"IFERROR(IF(tblSalg[[#This Row],[Produkt-id]]<>\"\",VLOOKUP(tblSalg[Produkt-id],tblProdukter[[Produkt-id]:[Navn]],2,FALSE),\"\"),\"Unknown Product ID\")","v":"Sandaler"},"2012-02-29",38,{"v":28,"d":"kr. 28"},952,{"v":1512,"d":"1,512"},{"$f":"tblSalg[[#This Row],[Solgte enheder (detail)]]+tblSalg[[#This Row],[Solgte enheder (engros)]]","v":{"v":2464,"d":"2,464"}},{"$f":"tblSalg[[#This Row],[Solgte enheder (detail)]]*tblSalg[[#This Row],[Detailpris pr. enhed]]+tblSalg[[#This Row],[Solgte enheder (engros)]]*tblSalg[[#This Row],[Engrospris pr. enhed*]]","v":{"v":78512,"d":"kr. 78,512"}}]
[null,3,{"$f":"IFERROR(IF(tblSalg[[#This Row],[Produkt-id]]<>\"\",VLOOKUP(tblSalg[Produkt-id],tblProdukter[[Produkt-id]:[Navn]],2,FALSE),\"\"),\"Unknown Product ID\")","v":"Parasoller"},"2012-02-29",92,{"v":92,"d":"kr. 92"},956,{"v":1266,"d":"1,266"},{"$f":"tblSalg[[#This Row],[Solgte enheder (detail)]]+tblSalg[[#This Row],[Solgte enheder (engros)]]","v":{"v":2222,"d":"2,222"}},{"$f":"tblSalg[[#This Row],[Solgte enheder (detail)]]*tblSalg[[#This Row],[Detailpris pr. enhed]]+tblSalg[[#This Row],[Solgte enheder (engros)]]*tblSalg[[#This Row],[Engrospris pr. enhed*]]","v":{"v":204424,"d":"kr. 204,424"}}]
[null,4,{"$f":"IFERROR(IF(tblSalg[[#This Row],[Produkt-id]]<>\"\",VLOOKUP(tblSalg[Produkt-id],tblProdukter[[Produkt-id]:[Navn]],2,FALSE),\"\"),\"Unknown Product ID\")","v":"Vandflasker"},"2012-02-29",43,{"v":36,"d":"kr. 36"},952,{"v":1390,"d":"1,390"},{"$f":"tblSalg[[#This Row],[Solgte enheder (detail)]]+tblSalg[[#This Row],[Solgte enheder (engros)]]","v":{"v":2342,"d":"2,342"}},{"$f":"tblSalg[[#This Row],[Solgte enheder (detail)]]*tblSalg[[#This Row],[Detailpris pr. enhed]]+tblSalg[[#This Row],[Solgte enheder (engros)]]*tblSalg[[#This Row],[Engrospris pr. enhed*]]","v":{"v":90976,"d":"kr. 90,976"}}]
[null,5,{"$f":"IFERROR(IF(tblSalg[[#This Row],[Produkt-id]]<>\"\",VLOOKUP(tblSalg[Produkt-id],tblProdukter[[Produkt-id]:[Navn]],2,FALSE),\"\"),\"Unknown Product ID\")","v":"Shorts"},"2012-02-29",98,{"v":73,"d":"kr. 73"},530,{"v":1452,"d":"1,452"},{"$f":"tblSalg[[#This Row],[Solgte enheder (detail)]]+tblSalg[[#This Row],[Solgte enheder (engros)]]","v":{"v":1982,"d":"1,982"}},{"$f":"tblSalg[[#This Row],[Solgte enheder (detail)]]*tblSalg[[#This Row],[Detailpris pr. enhed]]+tblSalg[[#This Row],[Solgte enheder (engros)]]*tblSalg[[#This Row],[Engrospris pr. enhed*]]","v":{"v":157936,"d":"kr. 157,936"}}]
[null,1,{"$f":"IFERROR(IF(tblSalg[[#This Row],[Produkt-id]]<>\"\",VLOOKUP(tblSalg[Produkt-id],tblProdukter[[Produkt-id]:[Navn]],2,FALSE),\"\"),\"Unknown Product ID\")","v":"Trøjer"},"2012-03-31",38,{"v":28,"d":"kr. 28"},973,{"v":1415,"d":"1,415"},{"$f":"tblSalg[[#This Row],[Solgte enheder (detail)]]+tblSalg[[#This Row],[Solgte enheder (engros)]]","v":{"v":2388,"d":"2,388"}},{"$f":"tblSalg[[#This Row],[Solgte enheder (detail)]]*tblSalg[[#This Row],[Detailpris pr. enhed]]+tblSalg[[#This Row],[Solgte enheder (engros)]]*tblSalg[[#This Row],[Engrospris pr. enhed*]]","v":{"v":76594,"d":"kr. 76,594"}}]
[null,2,{"$f":"IFERROR(IF(tblSalg[[#This Row],[Produkt-id]]<>\"\",VLOOKUP(tblSalg[Produkt-id],tblProdukter[[Produkt-id]:[Navn]],2,FALSE),\"\"),\"Unknown Product ID\")","v":"Sandaler"},"2012-03-31",50,{"v":36,"d":"kr. 36"},672,{"v":1105,"d":"1,105"},{"$f":"tblSalg[[#This Row],[Solgte enheder (detail)]]+tblSalg[[#This Row],[Solgte enheder (engros)]]","v":{"v":1777,"d":"1,777"}},{"$f":"tblSalg[[#This Row],[Solgte enheder (detail)]]*tblSalg[[#This Row],[Detailpris pr. enhed]]+tblSalg[[#This Row],[Solgte enheder (engros)]]*tblSalg[[#This Row],[Engrospris pr. enhed*]]","v":{"v":73380,"d":"kr. 73,380"}}]
[null,3,{"$f":"IFERROR(IF(tblSalg[[#This Row],[Produkt-id]]<>\"\",VLOOKUP(tblSalg[Produkt-id],tblProdukter[[Produkt-id]:[Navn]],2,FALSE),\"\"),\"Unknown Product ID\")","v":"Parasoller"},"2012-03-31",24,{"v":23,"d":"kr. 23"},769,{"v":1629,"d":"1,629"},{"$f":"tblSalg[[#This Row],[Solgte enheder (detail)]]+tblSalg[[#This Row],[Solgte enheder (engros)]]","v":{"v":2398,"d":"2,398"}},{"$f":"tblSalg[[#This Row],[Solgte enheder (detail)]]*tblSalg[[#This Row],[Detailpris pr. enhed]]+tblSalg[[#This Row],[Solgte enheder (engros)]]*tblSalg[[#This Row],[Engrospris pr. enhed*]]","v":{"v":55923,"d":"kr. 55,923"}}]
[null,4,{"$f":"IFERROR(IF(tblSalg[[#This Row],[Produkt-id]]<>\"\",VLOOKUP(tblSalg[Produkt-id],tblProdukter[[Produkt-id]:[Navn]],2,FALSE),\"\"),\"Unknown Product ID\")","v":"Vandflasker"},"2012-03-31",72,{"v":57,"d":"kr. 57"},985,{"v":1848,"d":"1,848"},{"$f":"tblSalg[[#This Row],[Solgte enheder (detail)]]+tblSalg[[#This Row],[Solgte enheder (engros)]]","v":{"v":2833,"d":"2,833"}},{"$f":"tblSalg[[#This Row],[Solgte enheder (detail)]]*tblSalg[[#This Row],[Detailpris pr. enhed]]+tblSalg[[#This Row],[Solgte enheder (engros)]]*tblSalg[[#This Row],[Engrospris pr. enhed*]]","v":{"v":176256,"d":"kr. 176,256"}}]
[null,5,{"$f":"IFERROR(IF(tblSalg[[#This Row],[Produkt-id]]<>\"\",VLOOKUP(tblSalg[Produkt-id],tblProdukter[[Produkt-id]:[Navn]],2,FALSE),\"\"),\"Unknown Product ID\")","v":"Shorts"},"2012-03-31",85,{"v":43,"d":"kr. 43"},721,{"v":1426,"d":"1,426"},{"$f":"tblSalg[[#This Row],[Solgte enheder (detail)]]+tblSalg[[#This Row],[Solgte enheder (engros)]]","v":{"v":2147,"d":"2,147"}},{"$f":"tblSalg[[#This Row],[Solgte enheder (detail)]]*tblSalg[[#This Row],[Detailpris pr. enhed]]+tblSalg[[#This Row],[Solgte enheder (engros)]]*tblSalg[[#This Row],[Engrospris pr. enhed*]]","v":{"v":122603,"d":"kr. 122,603"}}]
[null,1,{"$f":"IFERROR(IF(tblSalg[[#This Row],[Produkt-id]]<>\"\",VLOOKUP(tblSalg[Produkt-id],tblProdukter[[Produkt-id]:[Navn]],2,FALSE),\"\"),\"Unknown Product ID\")","v":"Trøjer"},"2012-04-30",91,{"v":65,"d":"kr. 65"},603,{"v":1226,"d":"1,226"},{"$f":"tblSalg[[#This Row],[Solgte enheder (detail)]]+tblSalg[[#This Row],[Solgte enheder (engros)]]","v":{"v":1829,"d":"1,829"}},{"$f":"tblSalg[[#This Row],[Solgte enheder (detail)]]*tblSalg[[#This Row],[Detailpris pr. enhed]]+tblSalg[[#This Row],[Solgte enheder (engros)]]*tblSalg[[#This Row],[Engrospris pr. enhed*]]","v":{"v":134563,"d":"kr. 134,563"}}]
[null,2,{"$f":"IFERROR(IF(tblSalg[[#This Row],[Produkt-id]]<>\"\",VLOOKUP(tblSalg[Produkt-id],tblProdukter[[Produkt-id]:[Navn]],2,FALSE),\"\"),\"Unknown Product ID\")","v":"Sandaler"},"2012-04-30",91,{"v":55,"d":"kr. 55"},892,{"v":1823,"d":"1,823"},{"$f":"tblSalg[[#This Row],[Solgte enheder (detail)]]+tblSalg[[#This Row],[Solgte enheder (engros)]]","v":{"v":2715,"d":"2,715"}},{"$f":"tblSalg[[#This Row],[Solgte enheder (detail)]]*tblSalg[[#This Row],[Detailpris pr. enhed]]+tblSalg[[#This Row],[Solgte enheder (engros)]]*tblSalg[[#This Row],[Engrospris pr. enhed*]]","v":{"v":181437,"d":"kr. 181,437"}}]
[null,3,{"$f":"IFERROR(IF(tblSalg[[#This Row],[Produkt-id]]<>\"\",VLOOKUP(tblSalg[Produkt-id],tblProdukter[[Produkt-id]:[Navn]],2,FALSE),\"\"),\"Unknown Product ID\")","v":"Parasoller"},"2012-04-30",42,{"v":42,"d":"kr. 42"},611,{"v":1181,"d":"1,181"},{"$f":"tblSalg[[#This Row],[Solgte enheder (detail)]]+tblSalg[[#This Row],[Solgte enheder (engros)]]","v":{"v":1792,"d":"1,792"}},{"$f":"tblSalg[[#This Row],[Solgte enheder (detail)]]*tblSalg[[#This Row],[Detailpris pr. enhed]]+tblSalg[[#This Row],[Solgte enheder (engros)]]*tblSalg[[#This Row],[Engrospris pr. enhed*]]","v":{"v":75264,"d":"kr. 75,264"}}]
[null,4,{"$f":"IFERROR(IF(tblSalg[[#This Row],[Produkt-id]]<>\"\",VLOOKUP(tblSalg[Produkt-id],tblProdukter[[Produkt-id]:[Navn]],2,FALSE),\"\"),\"Unknown Product ID\")","v":"Vandflasker"},"2012-04-30",85,{"v":43,"d":"kr. 43"},530,{"v":1039,"d":"1,039"},{"$f":"tblSalg[[#This Row],[Solgte enheder (detail)]]+tblSalg[[#This Row],[Solgte enheder (engros)]]","v":{"v":1569,"d":"1,569"}},{"$f":"tblSalg[[#This Row],[Solgte enheder (detail)]]*tblSalg[[#This Row],[Detailpris pr. enhed]]+tblSalg[[#This Row],[Solgte enheder (engros)]]*tblSalg[[#This Row],[Engrospris pr. enhed*]]","v":{"v":89727,"d":"kr. 89,727"}}]
[null,5,{"$f":"IFERROR(IF(tblSalg[[#This Row],[Produkt-id]]<>\"\",VLOOKUP(tblSalg[Produkt-id],tblProdukter[[Produkt-id]:[Navn]],2,FALSE),\"\"),\"Unknown Product ID\")","v":"Shorts"},"2012-04-30",82,{"v":71,"d":"kr. 71"},716,{"v":1249,"d":"1,249"},{"$f":"tblSalg[[#This Row],[Solgte enheder (detail)]]+tblSalg[[#This Row],[Solgte enheder (engros)]]","v":{"v":1965,"d":"1,965"}},{"$f":"tblSalg[[#This Row],[Solgte enheder (detail)]]*tblSalg[[#This Row],[Detailpris pr. enhed]]+tblSalg[[#This Row],[Solgte enheder (engros)]]*tblSalg[[#This Row],[Engrospris pr. enhed*]]","v":{"v":147391,"d":"kr. 147,391"}}]
[null,1,{"$f":"IFERROR(IF(tblSalg[[#This Row],[Produkt-id]]<>\"\",VLOOKUP(tblSalg[Produkt-id],tblProdukter[[Produkt-id]:[Navn]],2,FALSE),\"\"),\"Unknown Product ID\")","v":"Trøjer"},"2012-05-14",34,{"v":31,"d":"kr. 31"},850,{"v":1548,"d":"1,548"},{"$f":"tblSalg[[#This Row],[Solgte enheder (detail)]]+tblSalg[[#This Row],[Solgte enheder (engros)]]","v":{"v":2398,"d":"2,398"}},{"$f":"tblSalg[[#This Row],[Solgte enheder (detail)]]*tblSalg[[#This Row],[Detailpris pr. enhed]]+tblSalg[[#This Row],[Solgte enheder (engros)]]*tblSalg[[#This Row],[Engrospris pr. enhed*]]","v":{"v":76888,"d":"kr. 76,888"}}]
[null,2,{"$f":"IFERROR(IF(tblSalg[[#This Row],[Produkt-id]]<>\"\",VLOOKUP(tblSalg[Produkt-id],tblProdukter[[Produkt-id]:[Navn]],2,FALSE),\"\"),\"Unknown Product ID\")","v":"Sandaler"},"2012-05-14",64,{"v":40,"d":"kr. 40"},876,{"v":1663,"d":"1,663"},{"$f":"tblSalg[[#This Row],[Solgte enheder (detail)]]+tblSalg[[#This Row],[Solgte enheder (engros)]]","v":{"v":2539,"d":"2,539"}},{"$f":"tblSalg[[#This Row],[Solgte enheder (detail)]]*tblSalg[[#This Row],[Detailpris pr. enhed]]+tblSalg[[#This Row],[Solgte enheder (engros)]]*tblSalg[[#This Row],[Engrospris pr. enhed*]]","v":{"v":122584,"d":"kr. 122,584"}}]
[null,3,{"$f":"IFERROR(IF(tblSalg[[#This Row],[Produkt-id]]<>\"\",VLOOKUP(tblSalg[Produkt-id],tblProdukter[[Produkt-id]:[Navn]],2,FALSE),\"\"),\"Unknown Product ID\")","v":"Parasoller"},"2012-05-14",33,{"v":30,"d":"kr. 30"},881,{"v":1149,"d":"1,149"},{"$f":"tblSalg[[#This Row],[Solgte enheder (detail)]]+tblSalg[[#This Row],[Solgte enheder (engros)]]","v":{"v":2030,"d":"2,030"}},{"$f":"tblSalg[[#This Row],[Solgte enheder (detail)]]*tblSalg[[#This Row],[Detailpris pr. enhed]]+tblSalg[[#This Row],[Solgte enheder (engros)]]*tblSalg[[#This Row],[Engrospris pr. enhed*]]","v":{"v":63543,"d":"kr. 63,543"}}]
[null,4,{"$f":"IFERROR(IF(tblSalg[[#This Row],[Produkt-id]]<>\"\",VLOOKUP(tblSalg[Produkt-id],tblProdukter[[Produkt-id]:[Navn]],2,FALSE),\"\"),\"Unknown Product ID\")","v":"Vandflasker"},"2012-05-14",29,{"v":27,"d":"kr. 27"},802,{"v":1548,"d":"1,548"},{"$f":"tblSalg[[#This Row],[Solgte enheder (detail)]]+tblSalg[[#This Row],[Solgte enheder (engros)]]","v":{"v":2350,"d":"2,350"}},{"$f":"tblSalg[[#This Row],[Solgte enheder (detail)]]*tblSalg[[#This Row],[Detailpris pr. enhed]]+tblSalg[[#This Row],[Solgte enheder (engros)]]*tblSalg[[#This Row],[Engrospris pr. enhed*]]","v":{"v":65054,"d":"kr. 65,054"}}]
[null,5,{"$f":"IFERROR(IF(tblSalg[[#This Row],[Produkt-id]]<>\"\",VLOOKUP(tblSalg[Produkt-id],tblProdukter[[Produkt-id]:[Navn]],2,FALSE),\"\"),\"Unknown Product ID\")","v":"Shorts"},"2013-12-11",24,{"v":15,"d":"kr. 15"},824,{"v":1994,"d":"1,994"},{"$f":"tblSalg[[#This Row],[Solgte enheder (detail)]]+tblSalg[[#This Row],[Solgte enheder (engros)]]","v":{"v":2818,"d":"2,818"}},{"$f":"tblSalg[[#This Row],[Solgte enheder (detail)]]*tblSalg[[#This Row],[Detailpris pr. enhed]]+tblSalg[[#This Row],[Solgte enheder (engros)]]*tblSalg[[#This Row],[Engrospris pr. enhed*]]","v":{"v":49686,"d":"kr. 49,686"}}]

{"sheet":"Prisliste","index":2,"n_rows":18,"n_cols":6,"rows_kept":18,"merged":[[15,1,15,5]]}
[null,"Produktprisliste"]
[]
[null,"Adventure Works"]
[null,"Møllevej 321"]
[null,"Østerfelt"]
[null,"Telefon: (+45) 5741 5741"]
[null,"Fax: (+45) 5741 5671"]
[null,"www.adventure-works.com",{"$nulls":3},"Sidst opdateret d. 15. august 2013"]
[]
[null,"Produkt-id","Navn","Beskrivelse","Detailpris pr. enhed","Engrospris pr. enhed*"]
[null,1,"Trøjer","Vær sej hele sommeren i vores krympebehandlede trøjer i 100 % bomuld.",{"v":22,"d":"kr. 22"},{"v":15,"d":"kr. 15"}]
[null,2,"Sandaler","Brug vores sandaler med kraftige såler, og gå i det varmeste sand uden problemer.",{"v":10,"d":"kr. 10"},{"v":6,"d":"kr. 6"}]
[null,3,"Parasoller","Gå i dækning for solen under vores ekstra store strandparasol, som blokerer 96 % af de skadelige UV-stråler.",{"v":30,"d":"kr. 30"},{"v":20,"d":"kr. 20"}]
[null,4,"Vandflasker","Drik vand med en perfekt temperatur af vores isolerede vandflasker.",{"v":7,"d":"kr. 7"},{"v":5,"d":"kr. 5"}]
[null,5,"Shorts","Gå direkte fra vandet til bilen i vores hurtigtørrende nylonshorts.",{"v":15,"d":"kr. 15"},{"v":8,"d":"kr. 8"}]
[]
[{"$nulls":5},"Ring til os for varer, der ikke er angivet."]
[{"$nulls":5},"*Engrosprisen gælder for partier på 12 eller flere enheder."]

{"sheet":"Pivottabel over prispoint","index":3,"n_rows":10,"n_cols":4,"rows_kept":10,"hidden":true,"merged":[[1,1,1,3]]}
[null,"Pivottabel med prispoint"]
[null,"Dette ark skal forblive skjult. Ændringer, der foretages i pivottabellen, kan forårsage forkert data i rapporten over produktsalg. "]
[null,"Valgte produkter",{"$f":"IF(LEN(B5),B5,\"None\")","v":"Sandaler"}]
[null,"Produktnavn","Detailpris pr. enhed","Sum af Salg i alt (antal)"]
[null,"Sandaler",38,2464]
[null,null,50,1777]
[null,null,64,2539]
[null,null,70,1787]
[null,null,83,1758]
[null,null,91,2715]

{"sheet":"Pivottabel over salgstendenser","index":4,"n_rows":9,"n_cols":3,"rows_kept":9,"hidden":true,"merged":[[1,1,1,3]]}
[null,"Pivottabel med salgstendens"]
[null,"Dette ark skal forblive skjult. Ændringer, der foretages i pivottabellen, kan forårsage forkert data i rapporten over produktsalg. "]
[null,"Sum af Salg i alt (antal)","Produktnavn"]
[null,"Prisdato","Sandaler"]
[null,"jan",1787]
[null,"feb",4222]
[null,"mar",1777]
[null,"apr",2715]
[null,"maj",2539]